[Event "*** Titled Tuesday Blitz"]
[Site "Chess.com"]
[Date "2020.04.14"]
[Round "8"]
[White "smshk35"]
[Black "Medvezhlo"]
[Result "0-1"]
[WhiteElo "2281"]
[BlackElo "2448"]
[TimeControl "180+1"]
[EndTime "11:30:52 PDT"]
[Termination "Medvezhlo won by resignation"]

1. e4 {[%clk 0:03:00.9]} 1... g6 {[%clk 0:03:00.4]} 2. d4 {[%clk 0:03:00]} 2...
c5 {[%clk 0:03:00.5]} 3. d5 {[%clk 0:02:57.4]} 3... Bg7 {[%clk 0:03:00.2]} 4.
Nc3 {[%clk 0:02:57.3]} 4... d6 {[%clk 0:02:59.9]} 5. f4 {[%clk 0:02:56]} 5...
Nf6 {[%clk 0:03:00.2]} 6. Nf3 {[%clk 0:02:55.7]} 6... a6 {[%clk 0:02:59]} 7. a4
{[%clk 0:02:54.9]} 7... O-O {[%clk 0:02:55.6]} 8. h3 {[%clk 0:02:53.2]} 8... b6
{[%clk 0:02:55.9]} 9. Bc4 {[%clk 0:02:51]} 9... Bb7 {[%clk 0:02:56.1]} 10. O-O
{[%clk 0:02:51.2]} 10... Nbd7 {[%clk 0:02:56.4]} 11. Be3 {[%clk 0:02:33.5]}
11... Nh5 {[%clk 0:02:49.7]} 12. g4 {[%clk 0:02:25.1]} 12... Ng3 {[%clk
0:02:46]} 13. Rf2 {[%clk 0:02:22.2]} 13... f5 {[%clk 0:02:46.3]} 14. Ng5 {[%clk
0:02:13]} 14... Bxc3 {[%clk 0:02:38.3]} 15. bxc3 {[%clk 0:02:04]} 15... Nxe4
{[%clk 0:02:38.1]} 16. Nxe4 {[%clk 0:01:56.1]} 16... fxe4 {[%clk 0:02:39]} 17.
g5 {[%clk 0:01:56.1]} 17... b5 {[%clk 0:02:19.8]} 18. axb5 {[%clk 0:01:54.9]}
18... axb5 {[%clk 0:02:20.7]} 19. Rxa8 {[%clk 0:01:45.5]} 19... Qxa8 {[%clk
0:02:20.4]} 20. Bxb5 {[%clk 0:01:45.7]} 20... Nb6 {[%clk 0:02:21.3]} 21. c4
{[%clk 0:01:44.4]} 21... Qa3 {[%clk 0:02:20.6]} 22. Qe2 {[%clk 0:01:34.4]} 22...
Bc8 {[%clk 0:02:20.4]} 23. h4 {[%clk 0:01:34.1]} 23... Bf5 {[%clk 0:02:19.2]}
24. Rh2 {[%clk 0:01:33.6]} 24... Ra8 {[%clk 0:02:11.3]} 25. h5 {[%clk
0:01:33.1]} 25... Qa1+ {[%clk 0:02:11.2]} 26. Kf2 {[%clk 0:01:32]} 26... Qb1
{[%clk 0:02:10.9]} 27. hxg6 {[%clk 0:01:28.6]} 27... Bxg6 {[%clk 0:02:09.9]} 28.
Kg3 {[%clk 0:01:22.8]} 28... Ra3 {[%clk 0:01:58.3]} 29. Kg4 {[%clk 0:01:16.6]}
29... Qa1 {[%clk 0:01:45.7]} 30. f5 {[%clk 0:01:13.2]} 30... Bf7 {[%clk
0:01:39.7]} 31. Rh6 {[%clk 0:01:05.3]} 31... Qg7 {[%clk 0:01:37.6]} 32. Qf2
{[%clk 0:00:47.6]} 32... Rc3 {[%clk 0:01:29.9]} 33. f6 {[%clk 0:00:40.6]} 33...
exf6 {[%clk 0:01:28.6]} 34. Rxf6 {[%clk 0:00:39.5]} 34... Nxc4 {[%clk
0:01:26.2]} 35. Bxc4 {[%clk 0:00:33.7]} 35... Rxc4 {[%clk 0:01:26.5]} 36. Rxd6
{[%clk 0:00:33.1]} 36... h5+ {[%clk 0:01:19.6]} 37. Kh4 {[%clk 0:00:30.1]} 37...
Qe5 {[%clk 0:01:17.5]} 38. Rf6 {[%clk 0:00:26.2]} 38... Bxd5 {[%clk 0:01:11.3]}
39. g6 {[%clk 0:00:20.4]} 39... Rxc2 {[%clk 0:01:02.5]} 40. Rf8+ {[%clk
0:00:19.8]} 40... Kg7 {[%clk 0:01:02.5]} 41. Rf7+ {[%clk 0:00:17.6]} 41... Kh8
{[%clk 0:00:57.6]} 42. Rh7+ {[%clk 0:00:12.6]} 42... Kg8 {[%clk 0:00:56.4]} 43.
Qxc2 {[%clk 0:00:12.9]} 43... Qf6+ {[%clk 0:00:50]} 44. Bg5 {[%clk 0:00:13]}
44... Qf3 {[%clk 0:00:44.2]} 45. Rxh5 {[%clk 0:00:07.6]} 45... Be6 {[%clk
0:00:40.7]} 46. Rh8+ {[%clk 0:00:01.6]} 46... Kxh8 {[%clk 0:00:39.8]} 47. Qb2+
{[%clk 0:00:02.5]} 47... Kg8 {[%clk 0:00:36.4]} 48. Qb8+ {[%clk 0:00:03.1]}
48... Qf8 {[%clk 0:00:19.1]} 49. Qxf8+ {[%clk 0:00:03.5]} 49... Kxf8 {[%clk
0:00:18.7]} 50. Be3 {[%clk 0:00:03.8]} 50... c4 {[%clk 0:00:18.4]} 51. Bd4
{[%clk 0:00:04]} 51... Ke7 {[%clk 0:00:13]} 52. Kg5 {[%clk 0:00:04.3]} 52... Kd6
{[%clk 0:00:13.2]} 53. Kf6 {[%clk 0:00:04.6]} 53... Kd5 {[%clk 0:00:13.6]} 54.
Bc3 {[%clk 0:00:04.5]} 54... e3 {[%clk 0:00:13.8]} 55. g7 {[%clk 0:00:04.3]}
55... e2 {[%clk 0:00:14.1]} 56. Kg5 {[%clk 0:00:04]} 56... Ke4 {[%clk
0:00:14.2]} 57. Kf6 {[%clk 0:00:03.8]} 57... Bd5 {[%clk 0:00:14.1]} 58. Ke7
{[%clk 0:00:03.3]} 58... Kd3 {[%clk 0:00:14.3]} 59. Be1 {[%clk 0:00:03.7]} 59...
c3 {[%clk 0:00:14]} 60. Kd6 {[%clk 0:00:03.7]} 60... Bb3 {[%clk 0:00:12.7]} 61.
Kc5 {[%clk 0:00:03]} 61... c2 {[%clk 0:00:12.6]} 62. Kb4 {[%clk 0:00:03.9]} 0-1

[Event "*** Titled Tuesday Blitz"]
[Site "Chess.com"]
[Date "2020.04.14"]
[Round "8"]
[White "Lestofante90"]
[Black "GeorgMeier"]
[Result "0-1"]
[WhiteElo "2782"]
[BlackElo "3046"]
[TimeControl "180+1"]
[EndTime "11:30:58 PDT"]
[Termination "GeorgMeier won on time"]

1. d4 {[%clk 0:02:59.9]} 1... Nf6 {[%clk 0:02:59.5]} 2. c4 {[%clk 0:02:59.9]}
2... e6 {[%clk 0:02:59.8]} 3. g3 {[%clk 0:03:00]} 3... d5 {[%clk 0:02:57.6]} 4.
Nf3 {[%clk 0:03:00.1]} 4... Bb4+ {[%clk 0:02:56.3]} 5. Bd2 {[%clk 0:02:59.2]}
5... Bd6 {[%clk 0:02:56.5]} 6. Nc3 {[%clk 0:02:57.2]} 6... O-O {[%clk
0:02:36.4]} 7. Bg5 {[%clk 0:02:57]} 7... Be7 {[%clk 0:02:27.4]} 8. Bg2 {[%clk
0:02:41.3]} 8... dxc4 {[%clk 0:02:25.5]} 9. O-O {[%clk 0:02:35.2]} 9... Nbd7
{[%clk 0:02:20.6]} 10. Qa4 {[%clk 0:02:18.3]} 10... Nb6 {[%clk 0:02:01.8]} 11.
Qa5 {[%clk 0:02:18.5]} 11... Nfd5 {[%clk 0:02:00.9]} 12. Bxe7 {[%clk 0:02:15.4]}
12... Qxe7 {[%clk 0:02:01.8]} 13. Rfd1 {[%clk 0:02:08.9]} 13... Rd8 {[%clk
0:01:56.6]} 14. Rac1 {[%clk 0:02:05.9]} 14... Bd7 {[%clk 0:01:55.7]} 15. Ne5
{[%clk 0:02:00.8]} 15... Be8 {[%clk 0:01:55.8]} 16. a3 {[%clk 0:01:53.5]} 16...
a6 {[%clk 0:01:49.5]} 17. Ne4 {[%clk 0:01:41.5]} 17... Bb5 {[%clk 0:01:21.4]}
18. Nc5 {[%clk 0:01:33.2]} 18... c3 {[%clk 0:01:03.7]} 19. b3 {[%clk 0:00:55.8]}
19... Bxe2 {[%clk 0:00:42.6]} 20. Re1 {[%clk 0:00:55.7]} 20... Bb5 {[%clk
0:00:32.3]} 21. Nxb7 {[%clk 0:00:56]} 21... Rdb8 {[%clk 0:00:31.7]} 22. Nc5
{[%clk 0:00:55.8]} 22... Qd6 {[%clk 0:00:23.9]} 23. a4 {[%clk 0:00:52.5]} 23...
Be8 {[%clk 0:00:21.9]} 24. Nc4 {[%clk 0:00:51]} 24... Qc6 {[%clk 0:00:18.9]} 25.
Ne3 {[%clk 0:00:50.1]} 25... Qd6 {[%clk 0:00:18.4]} 26. Nc4 {[%clk 0:00:49.4]}
26... Qd8 {[%clk 0:00:18.2]} 27. Ne5 {[%clk 0:00:33.5]} 27... h6 {[%clk
0:00:17.7]} 28. h4 {[%clk 0:00:32.5]} 28... Ra7 {[%clk 0:00:17.8]} 29. Ne4
{[%clk 0:00:25.5]} 29... Rab7 {[%clk 0:00:12.9]} 30. Nxc3 {[%clk 0:00:24.2]}
30... Nxc3 {[%clk 0:00:11.8]} 31. Rxc3 {[%clk 0:00:21.6]} 31... Nd5 {[%clk
0:00:11.8]} 32. Rcc1 {[%clk 0:00:17.5]} 32... Rxb3 {[%clk 0:00:10.5]} 33. Qxa6
{[%clk 0:00:17.8]} 33... Nf6 {[%clk 0:00:09.4]} 34. Qc4 {[%clk 0:00:14.8]} 34...
R3b4 {[%clk 0:00:08.7]} 35. Qxc7 {[%clk 0:00:14.8]} 35... Rxa4 {[%clk
0:00:08.9]} 36. Qxd8 {[%clk 0:00:12.5]} 36... Rxd8 {[%clk 0:00:09.8]} 37. Bc6
{[%clk 0:00:10.4]} 37... Raxd4 {[%clk 0:00:09.4]} 38. Bxe8 {[%clk 0:00:10.5]}
38... Rxe8 {[%clk 0:00:10.3]} 39. Nc6 {[%clk 0:00:10.6]} 39... Rd5 {[%clk
0:00:09.8]} 40. Ra1 {[%clk 0:00:10.6]} 40... g5 {[%clk 0:00:09.9]} 41. hxg5
{[%clk 0:00:09.9]} 41... hxg5 {[%clk 0:00:10.8]} 42. Ra7 {[%clk 0:00:10.1]}
42... Kg7 {[%clk 0:00:10.9]} 43. Ne5 {[%clk 0:00:07.5]} 43... Rf8 {[%clk
0:00:11.2]} 44. Kg2 {[%clk 0:00:07.4]} 44... Rd4 {[%clk 0:00:08.2]} 45. Nf3
{[%clk 0:00:07.2]} 45... Rd5 {[%clk 0:00:08.2]} 46. Re5 {[%clk 0:00:05.6]} 46...
g4 {[%clk 0:00:05.6]} 47. Rg5+ {[%clk 0:00:04.3]} 47... Rxg5 {[%clk 0:00:05.7]}
48. Nxg5 {[%clk 0:00:05.2]} 48... Kg6 {[%clk 0:00:05.7]} 49. Ra5 {[%clk
0:00:05.2]} 49... Rd8 {[%clk 0:00:05.3]} 50. Kf1 {[%clk 0:00:03.3]} 50... Rd5
{[%clk 0:00:05]} 51. Rxd5 {[%clk 0:00:02.1]} 51... Nxd5 {[%clk 0:00:03.4]} 52.
f4 {[%clk 0:00:03]} 52... Ne7 {[%clk 0:00:03.4]} 53. Kf2 {[%clk 0:00:01.6]}
53... Nf5 {[%clk 0:00:03.7]} 54. Ne4 {[%clk 0:00:01.8]} 54... Nd4 {[%clk
0:00:03.7]} 55. Nd2 {[%clk 0:00:02.7]} 55... f5 {[%clk 0:00:03.7]} 56. Nc4
{[%clk 0:00:03]} 56... Kf6 {[%clk 0:00:04.1]} 57. Ne5 {[%clk 0:00:03.4]} 57...
Ke7 {[%clk 0:00:04.5]} 58. Ke3 {[%clk 0:00:03.3]} 58... Nb5 {[%clk 0:00:04.9]}
59. Nc4 {[%clk 0:00:03]} 59... Nc7 {[%clk 0:00:04.3]} 60. Kd4 {[%clk 0:00:02.6]}
60... Nd5 {[%clk 0:00:04.7]} 61. Ne5 {[%clk 0:00:03]} 61... Nf6 {[%clk
0:00:04.9]} 0-1

[Event "*** Titled Tuesday Blitz"]
[Site "Chess.com"]
[Date "2020.04.14"]
[Round "8"]
[White "Rodalquilar"]
[Black "Tjktiger"]
[Result "0-1"]
[WhiteElo "2627"]
[BlackElo "2830"]
[TimeControl "180+1"]
[EndTime "11:31:00 PDT"]
[Termination "Tjktiger won on time"]

1. d4 {[%clk 0:03:00.9]} 1... Nf6 {[%clk 0:01:34.9]} 2. Nf3 {[%clk 0:02:57]}
2... g6 {[%clk 0:01:35]} 3. Bf4 {[%clk 0:02:57.2]} 3... Bg7 {[%clk 0:01:34.3]}
4. e3 {[%clk 0:02:57.7]} 4... O-O {[%clk 0:01:33.7]} 5. Be2 {[%clk 0:02:58.2]}
5... c5 {[%clk 0:01:33.4]} 6. O-O {[%clk 0:02:58.1]} 6... d6 {[%clk 0:01:23.9]}
7. c3 {[%clk 0:02:57.9]} 7... Nh5 {[%clk 0:01:22]} 8. Bg5 {[%clk 0:02:57.8]}
8... h6 {[%clk 0:01:22]} 9. Bh4 {[%clk 0:02:58.1]} 9... Qb6 {[%clk 0:01:21.3]}
10. Nbd2 {[%clk 0:02:48.7]} 10... g5 {[%clk 0:01:18.6]} 11. Nc4 {[%clk
0:02:45.5]} 11... Qc7 {[%clk 0:01:17.1]} 12. Nfd2 {[%clk 0:02:45.8]} 12... gxh4
{[%clk 0:01:13.5]} 13. Bxh5 {[%clk 0:02:45.3]} 13... d5 {[%clk 0:01:12.8]} 14.
Na3 {[%clk 0:02:41.8]} 14... Nc6 {[%clk 0:01:10.2]} 15. Bg4 {[%clk 0:02:38.6]}
15... f5 {[%clk 0:01:09.4]} 16. Bh3 {[%clk 0:02:38.2]} 16... f4 {[%clk
0:01:00.1]} 17. Bxc8 {[%clk 0:02:35.1]} 17... Qxc8 {[%clk 0:01:01]} 18. Qh5
{[%clk 0:02:22.8]} 18... Qf5 {[%clk 0:01:00]} 19. Qxf5 {[%clk 0:01:36.4]} 19...
Rxf5 {[%clk 0:01:00.9]} 20. dxc5 {[%clk 0:01:37]} 20... fxe3 {[%clk 0:00:54.2]}
21. fxe3 {[%clk 0:01:37.9]} 21... Re5 {[%clk 0:00:52.8]} 22. Nc2 {[%clk
0:01:37.3]} 22... a5 {[%clk 0:00:47.7]} 23. Nf3 {[%clk 0:01:37.5]} 23... Re4
{[%clk 0:00:47.6]} 24. Nfd4 {[%clk 0:01:36.5]} 24... Ne5 {[%clk 0:00:44.4]} 25.
Rae1 {[%clk 0:01:16.7]} 25... Nd3 {[%clk 0:00:39.8]} 26. Rd1 {[%clk 0:01:11.1]}
26... Nxc5 {[%clk 0:00:35.1]} 27. Nf5 {[%clk 0:01:11]} 27... Rd8 {[%clk
0:00:32.2]} 28. Rf4 {[%clk 0:00:59.4]} 28... h3 {[%clk 0:00:14.1]} 29. Rxe4
{[%clk 0:00:55]} 29... Nxe4 {[%clk 0:00:15]} 30. Nxe7+ {[%clk 0:00:55.4]} 30...
Kf7 {[%clk 0:00:15.2]} 31. Nxd5 {[%clk 0:00:51.6]} 31... hxg2 {[%clk 0:00:15.4]}
32. Kxg2 {[%clk 0:00:48]} 32... Be5 {[%clk 0:00:15.8]} 33. b3 {[%clk 0:00:37.8]}
33... Rg8+ {[%clk 0:00:10.7]} 34. Kf3 {[%clk 0:00:38.2]} 34... Ng5+ {[%clk
0:00:07.9]} 35. Ke2 {[%clk 0:00:37.7]} 35... Nh3 {[%clk 0:00:07.8]} 36. Ne1
{[%clk 0:00:15.7]} 36... Rg1 {[%clk 0:00:06.3]} 37. c4 {[%clk 0:00:12.1]} 37...
Rh1 {[%clk 0:00:06.1]} 38. Nb6 {[%clk 0:00:11.7]} 38... Rxh2+ {[%clk 0:00:05.9]}
39. Kd3 {[%clk 0:00:12]} 39... Nf2+ {[%clk 0:00:05.9]} 40. Ke2 {[%clk
0:00:09.8]} 40... Nxd1+ {[%clk 0:00:04.9]} 41. Kxd1 {[%clk 0:00:10.7]} 41...
Rxa2 {[%clk 0:00:04.7]} 42. Nd7 {[%clk 0:00:10.5]} 42... Bd6 {[%clk 0:00:04.6]}
43. Nd3 {[%clk 0:00:07.5]} 43... h5 {[%clk 0:00:04.3]} 44. e4 {[%clk 0:00:07.2]}
44... h4 {[%clk 0:00:04.3]} 45. e5 {[%clk 0:00:07.7]} 45... Bb4 {[%clk
0:00:04.5]} 46. Nf4 {[%clk 0:00:06.8]} 46... Rd2+ {[%clk 0:00:03.6]} 47. Kc1
{[%clk 0:00:07]} 47... Rf2 {[%clk 0:00:03.2]} 48. Nd5 {[%clk 0:00:03.1]} 48...
Ke6 {[%clk 0:00:03]} 49. N7b6 {[%clk 0:00:02.4]} 49... Kxe5 {[%clk 0:00:02.9]}
50. Nd7+ {[%clk 0:00:01.4]} 50... Kd6 {[%clk 0:00:02.7]} 51. N5b6 {[%clk
0:00:02.3]} 51... Bd2+ {[%clk 0:00:02.5]} 52. Kc2 {[%clk 0:00:02.3]} 52... Be3+
{[%clk 0:00:03.4]} 53. Kd3 {[%clk 0:00:03.2]} 53... Bxb6 {[%clk 0:00:04.2]} 54.
Nxb6 {[%clk 0:00:03.9]} 54... h3 {[%clk 0:00:04.9]} 55. Na4 {[%clk 0:00:04.8]}
55... h2 {[%clk 0:00:05.1]} 56. c5+ {[%clk 0:00:05.7]} 56... Kc6 {[%clk
0:00:05]} 57. Ke3 {[%clk 0:00:06.6]} 57... Rg2 {[%clk 0:00:05.1]} 58. Kf3 {[%clk
0:00:06.9]} 58... h1=Q {[%clk 0:00:05.1]} 59. Ke3 {[%clk 0:00:07.8]} 59... Qh3+
{[%clk 0:00:05.4]} 0-1

[Event "*** Titled Tuesday Blitz"]
[Site "Chess.com"]
[Date "2020.04.14"]
[Round "8"]
[White "W_Amadeus"]
[Black "wild_cat99"]
[Result "1-0"]
[WhiteElo "2705"]
[BlackElo "2565"]
[TimeControl "180+1"]
[EndTime "11:31:01 PDT"]
[Termination "W_Amadeus won on time"]

1. e4 {[%clk 0:03:00.9]} 1... c5 {[%clk 0:02:58.2]} 2. Nf3 {[%clk 0:03:00.5]}
2... d6 {[%clk 0:02:58.4]} 3. d4 {[%clk 0:03:00.1]} 3... cxd4 {[%clk 0:02:59.3]}
4. Nxd4 {[%clk 0:03:00.8]} 4... Nf6 {[%clk 0:02:59.8]} 5. Nc3 {[%clk 0:03:01.4]}
5... a6 {[%clk 0:02:59.7]} 6. Be3 {[%clk 0:03:01.9]} 6... e6 {[%clk 0:02:59.5]}
7. f3 {[%clk 0:03:01.4]} 7... Qc7 {[%clk 0:02:59.6]} 8. Qd2 {[%clk 0:03:00.5]}
8... b5 {[%clk 0:02:59.8]} 9. g4 {[%clk 0:02:57.6]} 9... Nfd7 {[%clk 0:02:59.3]}
10. O-O-O {[%clk 0:02:53.5]} 10... Nb6 {[%clk 0:02:58.1]} 11. Ndxb5 {[%clk
0:01:21]} 11... axb5 {[%clk 0:02:57]} 12. Nxb5 {[%clk 0:01:21.5]} 12... Qc6
{[%clk 0:02:53.8]} 13. Nxd6+ {[%clk 0:00:59.4]} 13... Bxd6 {[%clk 0:02:52.2]}
14. Qxd6 {[%clk 0:01:00.3]} 14... Qxd6 {[%clk 0:02:53.1]} 15. Rxd6 {[%clk
0:01:01.2]} 15... N6d7 {[%clk 0:02:48]} 16. Kb1 {[%clk 0:00:58.5]} 16... Ba6
{[%clk 0:02:43.4]} 17. b3 {[%clk 0:00:53.3]} 17... Ke7 {[%clk 0:02:38.8]} 18.
Rd2 {[%clk 0:00:48.3]} 18... Rc8 {[%clk 0:02:34.7]} 19. h3 {[%clk 0:00:44]}
19... Nc6 {[%clk 0:02:33.7]} 20. Bxa6 {[%clk 0:00:43.7]} 20... Rxa6 {[%clk
0:02:34.6]} 21. Rhd1 {[%clk 0:00:43.9]} 21... Rc7 {[%clk 0:02:19.9]} 22. a4
{[%clk 0:00:37.8]} 22... e5 {[%clk 0:02:02.5]} 23. Kb2 {[%clk 0:00:35.5]} 23...
Ra5 {[%clk 0:01:53.1]} 24. Rd5 {[%clk 0:00:27]} 24... Rxd5 {[%clk 0:01:51.7]}
25. exd5 {[%clk 0:00:27.4]} 25... Nd4 {[%clk 0:01:49.4]} 26. c3 {[%clk
0:00:22.6]} 26... Nf6 {[%clk 0:01:13.3]} 27. cxd4 {[%clk 0:00:19.6]} 27... Nxd5
{[%clk 0:01:12.6]} 28. Bf2 {[%clk 0:00:11.9]} 28... Ke6 {[%clk 0:00:59.1]} 29.
dxe5 {[%clk 0:00:11.2]} 29... h5 {[%clk 0:00:53.2]} 30. Bg3 {[%clk 0:00:10.4]}
30... hxg4 {[%clk 0:00:51.1]} 31. hxg4 {[%clk 0:00:11.3]} 31... g6 {[%clk
0:00:48.5]} 32. f4 {[%clk 0:00:11.2]} 32... Rc5 {[%clk 0:00:42.1]} 33. Rd2
{[%clk 0:00:08.6]} 33... f5 {[%clk 0:00:40.9]} 34. exf6 {[%clk 0:00:07.9]} 34...
Nxf6 {[%clk 0:00:39.1]} 35. Bf2 {[%clk 0:00:08.2]} 35... Rc6 {[%clk 0:00:37.6]}
36. f5+ {[%clk 0:00:07.7]} 36... gxf5 {[%clk 0:00:35.6]} 37. gxf5+ {[%clk
0:00:08.6]} 37... Kxf5 {[%clk 0:00:35.5]} 38. Rc2 {[%clk 0:00:07.7]} 38... Ra6
{[%clk 0:00:32]} 39. Ka3 {[%clk 0:00:06.8]} 39... Ne4 {[%clk 0:00:26.3]} 40. Bd4
{[%clk 0:00:07.1]} 40... Ke6 {[%clk 0:00:24.6]} 41. b4 {[%clk 0:00:07]} 41...
Kd5 {[%clk 0:00:24.7]} 42. b5 {[%clk 0:00:07.5]} 42... Rh6 {[%clk 0:00:22.9]}
43. Bb2 {[%clk 0:00:07.3]} 43... Rh4 {[%clk 0:00:18.9]} 44. Rc1 {[%clk
0:00:06.7]} 44... Nc5 {[%clk 0:00:17.5]} 45. Rd1+ {[%clk 0:00:06.4]} 45... Kc4
{[%clk 0:00:11.7]} 46. Rc1+ {[%clk 0:00:03.9]} 46... Kd5 {[%clk 0:00:11.4]} 47.
Rd1+ {[%clk 0:00:04.4]} 47... Kc4 {[%clk 0:00:11.3]} 48. Bf6 {[%clk 0:00:04.4]}
48... Rh3+ {[%clk 0:00:10.9]} 49. Ka2 {[%clk 0:00:04.1]} 49... Nxa4 {[%clk
0:00:10.7]} 50. Rb1 {[%clk 0:00:03.9]} 50... Nc5 {[%clk 0:00:03.9]} 51. Bd8
{[%clk 0:00:02.9]} 51... Nb7 {[%clk 0:00:03.5]} 52. Bc7 {[%clk 0:00:02.5]} 52...
Rh7 {[%clk 0:00:02.7]} 53. b6 {[%clk 0:00:02.8]} 53... Kc5 {[%clk 0:00:02.6]}
54. Rc1+ {[%clk 0:00:03.1]} 54... Kb5 {[%clk 0:00:02.2]} 55. Kb3 {[%clk
0:00:03.6]} 55... Rh3+ {[%clk 0:00:01.9]} 56. Kc2 {[%clk 0:00:03.9]} 56... Rh7
{[%clk 0:00:02.2]} 57. Kd3 {[%clk 0:00:04.3]} 57... Rh6 {[%clk 0:00:01.8]} 58.
Ke4 {[%clk 0:00:04.4]} 58... Rc6 {[%clk 0:00:02.1]} 59. Rb1+ {[%clk 0:00:04.4]}
59... Kc4 {[%clk 0:00:02.1]} 60. Ke5 {[%clk 0:00:04.4]} 60... Kc5 {[%clk
0:00:01.6]} 61. Rc1+ {[%clk 0:00:03.7]} 61... Kb5 {[%clk 0:00:02]} 62. Rb1+
{[%clk 0:00:04.3]} 62... Kc5 {[%clk 0:00:01.9]} 63. Ra1 {[%clk 0:00:04.9]} 63...
Kb5 {[%clk 0:00:02.8]} 64. Ra7 {[%clk 0:00:04.3]} 1-0

[Event "*** Titled Tuesday Blitz"]
[Site "Chess.com"]
[Date "2020.04.14"]
[Round "8"]
[White "Leonid_Starozhilov"]
[Black "Igor_Lysyj"]
[Result "1/2-1/2"]
[WhiteElo "2680"]
[BlackElo "2819"]
[TimeControl "180+1"]
[EndTime "11:31:05 PDT"]
[Termination "Game drawn by agreement"]

1. b3 {[%clk 0:03:00.9]} 1... d5 {[%clk 0:02:58.7]} 2. Bb2 {[%clk 0:03:01.4]}
2... Nf6 {[%clk 0:02:56.5]} 3. Nf3 {[%clk 0:03:01.1]} 3... e6 {[%clk 0:02:56.4]}
4. e3 {[%clk 0:03:00.9]} 4... Be7 {[%clk 0:02:56.3]} 5. d4 {[%clk 0:02:59.8]}
5... O-O {[%clk 0:02:54.5]} 6. Bd3 {[%clk 0:02:58.9]} 6... b6 {[%clk 0:02:51.7]}
7. O-O {[%clk 0:02:58.3]} 7... Bb7 {[%clk 0:02:52.1]} 8. Nbd2 {[%clk 0:02:58.8]}
8... Nbd7 {[%clk 0:02:51.3]} 9. c4 {[%clk 0:02:55.6]} 9... a5 {[%clk 0:02:48]}
10. a3 {[%clk 0:02:54.9]} 10... Ne4 {[%clk 0:02:45.4]} 11. Qc2 {[%clk
0:02:49.5]} 11... f5 {[%clk 0:02:44.9]} 12. cxd5 {[%clk 0:02:43.8]} 12... Nxd2
{[%clk 0:02:37.3]} 13. Nxd2 {[%clk 0:02:30.8]} 13... Bxd5 {[%clk 0:02:37.2]} 14.
f3 {[%clk 0:01:55.4]} 14... Bd6 {[%clk 0:02:35.4]} 15. Nc4 {[%clk 0:01:41.5]}
15... Kh8 {[%clk 0:01:51]} 16. Rae1 {[%clk 0:01:39.1]} 16... Bxc4 {[%clk
0:01:47.5]} 17. bxc4 {[%clk 0:01:39.2]} 17... c5 {[%clk 0:01:45.2]} 18. e4
{[%clk 0:01:31.4]} 18... cxd4 {[%clk 0:01:39.2]} 19. exf5 {[%clk 0:01:31.6]}
19... exf5 {[%clk 0:01:35.9]} 20. Bxf5 {[%clk 0:01:07.3]} 20... Nc5 {[%clk
0:01:34.7]} 21. Be4 {[%clk 0:00:29.7]} 21... Ra7 {[%clk 0:01:16.6]} 22. Bxd4
{[%clk 0:00:24.1]} 22... Bxh2+ {[%clk 0:01:13.5]} 23. Kxh2 {[%clk 0:00:24.4]}
23... Qxd4 {[%clk 0:01:13.4]} 24. Bd5 {[%clk 0:00:08.2]} 24... Re7 {[%clk
0:01:10.1]} 25. Rxe7 {[%clk 0:00:05.9]} 25... Qh4+ {[%clk 0:01:09.7]} 26. Kg1
{[%clk 0:00:06.2]} 26... Qxe7 {[%clk 0:01:09.6]} 27. Qf2 {[%clk 0:00:05.6]}
27... Re8 {[%clk 0:01:01.7]} 28. Rb1 {[%clk 0:00:05.6]} 28... Qf6 {[%clk
0:00:59.1]} 29. Re1 {[%clk 0:00:05.2]} 29... Rxe1+ {[%clk 0:00:51.2]} 30. Qxe1
{[%clk 0:00:06.1]} 30... g6 {[%clk 0:00:50]} 31. Qe3 {[%clk 0:00:04.5]} 31...
Kg7 {[%clk 0:00:48.8]} 32. g3 {[%clk 0:00:04.9]} 32... h5 {[%clk 0:00:33.9]} 33.
f4 {[%clk 0:00:05.3]} 33... Kh6 {[%clk 0:00:28]} 34. Kg2 {[%clk 0:00:05.4]}
34... Kg7 {[%clk 0:00:26.3]} 35. Kh2 {[%clk 0:00:04.6]} 35... Nd7 {[%clk
0:00:22.6]} 36. Qe8 {[%clk 0:00:03.6]} 36... Nf8 {[%clk 0:00:22.3]} 37. Qe3
{[%clk 0:00:03.3]} 37... Qd6 {[%clk 0:00:22.2]} 38. Kg2 {[%clk 0:00:03.3]} 38...
Nd7 {[%clk 0:00:21.1]} 39. Qc3+ {[%clk 0:00:03.7]} 39... Qf6 {[%clk 0:00:20.6]}
40. Qe3 {[%clk 0:00:04.1]} 40... Kh6 {[%clk 0:00:19.9]} 41. Kh2 {[%clk
0:00:04.7]} 41... Nc5 {[%clk 0:00:18.7]} 42. Kh3 {[%clk 0:00:04.8]} 42... a4
{[%clk 0:00:18.5]} 43. Qe8 {[%clk 0:00:03.5]} 43... Nb3 {[%clk 0:00:17.5]} 44.
Bf7 {[%clk 0:00:02.2]} 44... Kg7 {[%clk 0:00:15.8]} 45. Qg8+ {[%clk 0:00:02.3]}
45... Kh6 {[%clk 0:00:15.9]} 46. Qf8+ {[%clk 0:00:02.8]} 46... Qg7 {[%clk
0:00:16.2]} 47. Qe8 {[%clk 0:00:02.1]} 47... Nd4 {[%clk 0:00:14.3]} 48. Qe4
{[%clk 0:00:01.6]} 48... Qf6 {[%clk 0:00:11.7]} 49. Bd5 {[%clk 0:00:02.1]} 49...
Qf5+ {[%clk 0:00:11.1]} 50. Qxf5 {[%clk 0:00:02.3]} 50... gxf5 {[%clk
0:00:10.9]} 51. Kh4 {[%clk 0:00:02.9]} 51... Nc2 {[%clk 0:00:10.3]} 52. Bc6
{[%clk 0:00:03.4]} 52... Nxa3 {[%clk 0:00:09.9]} 53. Bxa4 {[%clk 0:00:04.1]}
53... Nxc4 {[%clk 0:00:09.7]} 54. Bd7 {[%clk 0:00:04.8]} 54... Ne3 {[%clk
0:00:07]} 55. Be8 {[%clk 0:00:04.8]} 55... Ng2+ {[%clk 0:00:05.4]} 56. Kh3
{[%clk 0:00:05.2]} 56... Ne3 {[%clk 0:00:05.9]} 57. Kh4 {[%clk 0:00:05.5]} 57...
Nc4 {[%clk 0:00:05.3]} 58. Bxh5 {[%clk 0:00:05.3]} 58... b5 {[%clk 0:00:04.9]}
59. Be2 {[%clk 0:00:05.5]} 59... Nd6 {[%clk 0:00:03.1]} 60. Bxb5 {[%clk
0:00:04.1]} 60... Nxb5 {[%clk 0:00:02.3]} 61. g4 {[%clk 0:00:04.8]} 61... Kg6
{[%clk 0:00:02.4]} 62. gxf5+ {[%clk 0:00:05.1]} 62... Kxf5 {[%clk 0:00:02.1]}
1/2-1/2